Cogmind - Beta 13 *** ADVENTURER MODE // 2024.06.22 @ 19:38:29 Player: ElBos Result: Destroyed by S-10 Pest with Light Assault Rifle Performance ------------- Evolutions (0) 0 Regions Visited (2) 400 Robots Destroyed (30) 150 Value Destroyed (563) 563 Prototype IDs (0) 0 Alien Tech Used (0) 0 Bonus (0) 0 TOTAL SCORE: 1113 Bonus ------- None Cogmind --------- Core Integrity 0/250 Matter 268/300 Energy 124/125 System Corruption 0% Temperature Cool (0) Movement Walking (190) Ox1 Location -10/Mines Parts ------- > --- POWER (1) -------- Light Ion Engine > --- PROPULSION (2) --- Aluminum Leg > --- UTILITY (2) ------ Small Storage Unit > --- WEAPON (2) ------- Light Assault Rifle Grenade Launcher > --- INVENTORY (8) ---- Backup Plating I Backup Laser I Datajack Peak State ------------ > --- POWER ------------ Ion Engine > --- PROPULSION ------- Light Treads Light Treads > --- UTILITY ---------- Small Storage Unit Backup Plating I > --- WEAPON ----------- Backup Laser I Light Assault Rifle > --- INVENTORY -------- Ion Engine Grenade Launcher Grenade Launcher [Rating: 7] Favorites ----------- Power Ion Engine Engine Ion Engine Propulsion Light Treads Treads Light Treads Leg Aluminum Leg Flight Unit Flight Unit Utility Small Storage Unit Device Sensor Array Storage Small Storage Unit Protection Backup Plating I Weapon Light Assault Rifle Energy Gun Backup Laser I Ballistic Gun Light Assault Rifle Launcher Grenade Launcher Build | -11 -10 -10 ------- Run | Yrd Mat Min Slots Evolved . | . . . Power . | . . . Propulsion . | . . . Utility . | . . . Weapon . | . . . Parts Attached 18 | 5 3 10 Power 4 | 1 . 3 Engine 4 | 1 . 3 Core . | . . . Reactor . | . . . Propulsion 4 | 2 . 2 Treads 2 | 2 . . Leg 1 | . . 1 Wheel . | . . . Hover . | . . . Flight 1 | . . 1 Utility 2 | 1 1 . Device 1 | . 1 . Storage 1 | 1 . . Processor . | . . . Hackware . | . . . Protection . | . . . Artifact . | . . . Weapon 8 | 1 2 5 Energy Gun . | . . . Energy Cannon . | . . . Ballistic Gun 5 | 1 1 3 Ballistic Cannon . | . . . Launcher 3 | . 1 2 Special Weapon . | . . . Impact Weapon . | . . . Slashing Weapon . | . . . Piercing Weapon . | . . . Special Melee Weapon . | . . . Unidentified Prototypes . | . . . Parts Lost 9 | . 2 7 Power 2 | . . 2 Propulsion 2 | . 1 1 Utility 1 | . . 1 Weapon 4 | . 1 3 Highest Loss Streak 2 | . 1 2 To Critical Strikes . | . . . Average Slot Usage (%) 74 | . 79 68 Engine 13 | . 14 13 Treads 12 | . 23 . Leg 2 | . . 4 Flight 1 | . . 3 Device 5 | . 4 5 Storage 14 | . 14 14 Protection 1 | . 3 . Energy Gun 1 | . 2 . Ballistic Gun 16 | . 14 19 Launcher 4 | . 2 6 Naked Turns . | . . . Heaviest Build 15 | 11 15 15 Greatest Support 40 | 40 40 10 Greatest Overweight (x) 4 | . . 4 Average Overweight (x) . | . . 2 Largest Inventory Capacity 8 | 8 8 8 Average Capacity 7 | 7 8 8 Most Carried 8 | 4 7 8 Average Carried 4 | 1 3 6 Final Capacity 8 | 8 8 8 Final Carried 7 | 1 7 3 Class Distribution -------------------- 100% | Mutant Dominant Class ---------------- Mutant | -10/Materials Mutant | -10/Mines Resources | -11 -10 -10 ----------- Run | Yrd Mat Min Matter Collected 564 | 120 253 191 Remotely . | . . . Salvage Created 597 | . 251 346 Parts 50 | . 21 29 Haulers Intercepted . | . . . Recyclers Shooed . | . . . Parts Field Recycled . | . . . Retrieved Matter . | . . . Parts Self-Destructed . | . . . Prevented . | . . . Kills | -11 -10 -10 ------- Run | Yrd Mat Min Combat Hostiles Destroyed 27 | . 12 15 Guns 20 | . 8 12 AOE 7 | . 4 3 Classes Destroyed 5 | . 4 1 Builder 1 | . 1 . Recycler 1 | . . 1 Watcher 1 | . 1 . Swarmer 17 | . 6 11 Grunt 10 | . 6 4 Best Kill Streak 4 | . 3 4 Combat Bots Only 3 | . 3 3 Max Kills in Single Turn 2 | . 1 2 Gunslinging . | . . . Exploded 2 | . 1 2 Melee . | . . . Uniques/NPCs Destroyed . | . . . Combat | -11 -10 -10 -------- Run | Yrd Mat Min Hostile Shots Fired 226 | . 106 120 Missed 68 | . 33 35 Damage Taken 1261 | . 631 630 Core 252 | . 110 142 Absorbed by Shields . | . . . Ignored by Resistances 405 | . 204 201 Core Remaining (%) 100 | 100 . . Volleys Fired 99 | . 44 55 Largest 2 | . 2 2 Hottest 53 | . 50 53 Shots Fired 135 | . 58 77 Gun 125 | . 52 73 Cannon . | . . . Launcher 10 | . 6 4 Special . | . . . Kinetic 117 | . 44 73 Thermal 8 | . 8 . Explosive 10 | . 6 4 Electromagnetic . | . . . Robot Hit Streak 17 | . 9 17 Robot Miss Streak 3 | . 3 3 Penetration Max . | . . . Secondary Targets 1 | . 1 . Max Gunslinging Chain 1 | . 1 . Shots Hit Robots 95 | . 40 55 Core Hits 46 | . 22 24 Critical Kills 1 | . . 1 Critical Parts Destroyed 1 | . . 1 Critical Strikes 2 | . . 2 Destroy 2 | . . 2 Melee Attacks . | . . . Impact . | . . . Slashing . | . . . Piercing . | . . . Sneak Attacks . | . . . Combat Hostiles . | . . . Follow-up Attacks . | . . . Damage Inflicted 1549 | . 737 812 Guns 834 | . 299 535 Cannons . | . . . Explosions 715 | . 438 277 Melee . | . . . Ramming . | . . . Kinetic 791 | . 256 535 Thermal 43 | . 43 . Explosive 715 | . 438 277 Electromagnetic . | . . . Impact . | . . . Slashing . | . . . Piercing . | . . . Highest Corruption . | . . . Average Corruption . | . . . Corruption Purged . | . . . Corruption Blocked . | . . . Overload Shots . | . . . Overflow Damage 20 | . 20 . Projectiles . | . . . Explosions 20 | . 20 . Melee . | . . . Knockbacks . | . . . Impact . | . . . Kinetic . | . . . Secondary . | . . . Self-Inflicted Damage 80 | . 48 32 Shots 5 | . 3 2 Rammed . | . . . Targets Rammed . | . . . Kicked . | . . . Crushed . | . . . Highest Temperature 41 | . 41 19 Average Temperature 8 | . 12 4 Received Heat Transfer 291 | . 138 153 Siege Activations . | . . . Robots Corrupted . | . . . Combat Hostiles . | . . . Parts Fried . | . . . Impact Corruptions . | . . . Robots Melted . | . . . Combat Hostiles . | . . . Parts Melted 1 | . 1 . Heat Transferred 185 | . 185 . Parts Sabotaged . | . . . Parts Stolen . | . . . Parts Stripped . | . . . Power Chain Reactions . | . . . Alert | -11 -10 -10 ------- Run | Yrd Mat Min Peak Influence 249 | . 249 161 Initial 20 | . . 20 Average 74 | . 88 74 Maximum Alert Level 1 | . 1 . Low Security (%) 95 | 100 90 100 Level 1 4 | . 9 . Level 2 . | . . . Level 3 . | . . . Level 4 . | . . . Level 5 . | . . . High Security . | . . . Max Security . | . . . Squads Dispatched 2 | . 2 . Investigation 2 | . 2 . Extermination . | . . . Reinforcement . | . . . Assault . | . . . Garrison . | . . . Intercept . | . . . Searches Triggered . | . . . Construction Impeded . | . . . Haulers Reinforced . | . . . Active Scanning Responses . | . . . Cargo Convoy Interrupts . | . . . Stealth | -11 -10 -10 --------- Run | Yrd Mat Min Distress Signals 2 | . 2 . Communications Jammed . | . . . Distress Signals . | . . . Times Spotted 39 | . 23 16 Peak Tracking Total 4 | . 4 3 Tactical Retreats . | . . . Traps | -11 -10 -10 ------- Run | Yrd Mat Min Traps Triggered 2 | . 2 . Indirectly . | . . . Trap Hack Attempts . | . . . Triggered . | . . . Disarmed . | . . . Reprogrammed . | . . . Reused . | . . . Traps Extracted . | . . . Installed . | . . . Triggered . | . . . Machines | -11 -10 -10 ---------- Run | Yrd Mat Min Machines Disabled . | . . . Max in Single Turn . | . . . Machines Repaired . | . . . Machines Dismantled . | . . . Machines Sabotaged . | . . . Overloaded Fab Kills . | . . . Hacking | -11 -10 -10 --------- Run | Yrd Mat Min Machines Accessed 7 | . 7 . Terminals 5 | . 5 . Fabricators . | . . . Repair Stations 1 | . 1 . Recycling Units 1 | . 1 . Scanalyzers . | . . . Garrison Access . | . . . Total Hacks 17 | . 17 . Successful 9 | . 9 . Failed 8 | . 8 . Catastrophic 2 | . 2 . Database Lockouts . | . . . Manual 2 | . 2 . Terminals 11 | . 11 . Fabricators . | . . . Repair Stations 3 | . 3 . Recycling Units 3 | . 3 . Scanalyzers . | . . . Garrison Access . | . . . Terminal Hacks 5 | . 5 . Record 2 | . 2 . Robot Analysis 2 | . 2 . Branch Access Points 1 | . 1 . Fabricator Hacks . | . . . Repair Station Hacks 2 | . 2 . Scan Component 1 | . 1 . Refit 1 | . 1 . Recycling Unit Hacks 2 | . 2 . Report Inventory 1 | . 1 . Retrieve Components 1 | . 1 . Scanalyzer . | . . . Garrison Access Hacks . | . . . Unauthorized Hacks . | . . . Terminals . | . . . Fabricators . | . . . Repair Stations . | . . . Recycling Units . | . . . Scanalyzers . | . . . Garrison Access . | . . . Data Cores Recovered . | . . . Used . | . . . Hacking Detections 7 | . 7 . Full Trace Events 3 | . 3 . Feedback Events . | . . . Feedback Blocked . | . . . Robot Schematics Acquired . | . . . Robots Built . | . . . Authchips . | . . . Time . | . . . Total Robot Build Rating . | . . . Part Schematics Acquired . | . . . Parts Built . | . . . Authchips . | . . . Time . | . . . Total Part Build Rating . | . . . Parts Repaired . | . . . Time . | . . . Parts Recycled . | . . . Recycled Matter . | . . . Retrieved Matter . | . . . Retrieved Components 10 | . 10 . Parts Scanalyzed . | . . . Part Schematics Acquired . | . . . Parts Damaged . | . . . Bothacking | -11 -10 -10 ------------ Run | Yrd Mat Min Used RIF Installer . | . . . Robots Hacked . | . . . Non-combat . | . . . Combat . | . . . Robot Hacks Applied . | . . . Relay Couplers Released . | . . . Fabnet Peak Effective % . | . . . Robots Rewired . | . . . Allies Hacked . | . . . Hacks Repelled . | . . . Allies | -11 -10 -10 -------- Run | Yrd Mat Min Total Allies . | . . . Largest Group . | . . . Highest-Rated Group . | . . . Highest-Rated Ally . | . . . Total Orders . | . . . Ally Attacks . | . . . Total Damage . | . . . Kills . | . . . Allies Corrupted . | . . . Allies Melted . | . . . Intel | -11 -10 -10 ------- Run | Yrd Mat Min Robot Analysis Total 2 | . 2 . Derelict Logs Recovered 1 | . . 1 Drone Launches . | . . . Drone Recoveries . | . . . Exploration | -11 -10 -10 ------------- Run | Yrd Mat Min Turns Passed 2007 | 183 974 850 Spaces Moved 972 | 121 525 326 Core 149 | 21 . 128 Treads 625 | 100 525 . Legs 106 | . . 106 Wheels . | . . . Hover . | . . . Flight 92 | . . 92 Fastest Speed 50 | 50 160 190 Average Speed 176 | 140 160 216 Slowest Speed 250 | 160 160 250 Overloaded Moves . | . . . Propulsion Burnouts . | . . . Robots Hopped . | . . . Cave-ins Triggered . | . . . Exploration Rate (%) 54 | 7 86 69 Regions Visited 2 Branch Regions 1 Pre-discovered Areas . | . . . Known Exits Taken 1 | . 1 . Unknown Exits Taken 1 | 1 . . Scrap Searched 1 | . . 1 Spaces Dug . | . . . Terrain Destroyed 71 | . 36 35 Melee . | . . . Projectile . | . . . AOE 71 | . 36 35 Terrain Rammed . | . . . Walls Destroyed . | . . . Machines Disabled . | . . . Actions | -11 -10 -10 --------- Run | Yrd Mat Min Total 1150 | 135 608 407 Wait 39 | . 31 8 Move 970 | 120 524 326 Hop . | . . . Pick Up 19 | 8 6 5 Fast Attach . | . . . Attach 13 | 5 . 8 Detach 1 | . . 1 Swap 5 | . 3 2 Drop 4 | 2 . 2 Fire 99 | . 44 55 Melee . | . . . Ram . | . . . Kick . | . . . Crush . | . . . Escape Stasis . | . . . Rewire . | . . . Trap . | . . . Miscellaneous . | . . . Route ------- -11/Scrapyard -10/Materials (discovered 4 exits: [*Mat x2] / *Min x2) -10/Mines History --------- Turn | Location | Event 48 | -11/Scrapyard | Discovered new exit (range 15) 184 | -11/Scrapyard | Entered Materials 311 | -10/Materials | Identified exit to Mines 318 | -10/Materials | Build established: Mutant 772 | -10/Materials | Discovered new exit (range 15) 1005 | -10/Materials | Discovered new exit (range 11) 1158 | -10/Materials | Entered Mines 1163 | -10/Mines | Core integrity fell below 50% 1697 | -10/Mines | Learned 2 Materials zone layouts 1807 | -10/Mines | Core integrity fell below 20% 2008 | -10/Mines | Destroyed by S-10 Pest with Light Assault Rifle Last Messages --------------- Dropped Flight Unit. Acquired 10 matter. S-10 Pest destroyed. S-10 Pest suffers critical hit (Destroy). Destroyed Lgt. Ion Engine. S-10 Pest destroyed. Destroyed Lgt. Ion Engine. S-10 Pest destroyed. Acquired 12 matter. Acquired 13 matter. Acquired 15 matter. Ion Engine destroyed. Lgt. Assault Rifle destroyed. G-34 Mercenary destroyed. G-47 Trooper destroyed. Acquired 28 matter. S-10 Pest destroyed. Hvy. Assault Rifle destroyed. S-10 Pest destroyed. Acquired 15 matter. Map ----- +----------------------------------------------------+ | | | | | | | | | | | | | | | | | | | | | | | | | | | ????????????????????????????????????????????? | | ????????????????????????????????????????????? | | ?????????????????????????#######????????????? | | ????????????????????????## # ##???????????? | | ?????????????????????#### ####????????? | | ?????????????????????# #????????? | | ?????????????????????# #?# ! ########## | | ?????????????????????# ### ## | | ?????????????????????# ## ############# | | ?????????????????????# #???????????? | | ????????????????????## ## ##???????????? | | ???????????????????## *##### #????????????? | | ???????????????????#@[ #??## #????????????? | | ?????????????????? *== #??# #????????????? | | ???????????????? s #??# #????????????? | | ?????????????? ##### #?# ????????????? | | ?????????????###?????# #?#####???????????? | | ?????????????????????# #?????????????????? | | ?????????????????????# ????????????????? | | ?????????????????????? ### ???????????????? | | ?????????????????????? ##???#??????????????? | | ?????????????????????? ##??????####?????????? | | ??????????????????????##??????? #?????????? | | ???????????????????????????????# #?????????? | | ???????????????????????????????# #?????????? | | ???????????????????????????????# #?????????? | | ?????????????????????????????### #####?????? | | ????????????????????????????## # ###???? | | ??????????????????????##????# ####? | | ?????????????????##### ###### ## | | ????????????????## #??# # | | ??????????????### #???# ## | | ?????????????## ######### ##???# ### | | ????????????## ########## #????# #?## | | ????????????# ## #?# #????# #??? | | ????????????# ### #?# ###### #????# #??? | | ????????????## ##?# ### ##??# #????# #??? | +----------------------------------------------------+ Best States ------------- Heat Dissipation 25 Energy Generation 10 Energy Capacity 250 Matter Stores 300 Matter Capacity 300 Sight Range 16 Robot Scan Range 14 Terrain Scan Density 10 Armor Coverage 80 Resistance: KI 20 Resistance: TH 20 Resistance: EX 20 Resistance: EM 20 Resistance: I 20 Resistance: S 20 Resistance: P 20 Evasion (%) 50 Recoil Reduction 2 Offensive Hacking 10 Item Schematics ----------------- None Robot Schematics ------------------ None Fabricated ------------ Nothing Alien Tech Used ----------------- None Achievements -------------- None Challenges ------------ None Game ------ Seed NovaFrostMatrix Manual? 0 Play Time 00:16:11 Cumulative 6.1 hours Start 2024.06.22 @ 19:25:57 End 2024.06.22 @ 19:38:29 Sessions 1 Manual Loads 0 Difficulty Adventurer Special Mode None Game No. 4 Rogue 0 Adventurer 4 Explorer 0 Win Type - Total 0 Types 0/0/0/0/0/0/0/0/0 Lore% 16 Gallery% 10 Achievement% 12 Wizard Run 0 Options --------- Layout 1 ASCII 0 Keyboard 0 Movement Mouse Keybinds 0 Fullscreen 2 Font 24/Smallcaps Map View 50x35 Zoom Use 0% Tactical HUD 0 Map Filters NONE Filters NONE Steam 1 RUN: 8725d026-b653-4c4e-9c52-c7cc8809cc7a